bitfinex/quotes_BTCUSD_20230118
["timestamp","ask_amount","ask_price","bid_price","bid_amount"]
[1674067497854,0.25185379,20916.0,20912.0,0.97250697]
[1674067498113,0.25185379,20916.0,20913.0,0.48570169]
[1674067498380,0.25185379,20916.0,20914.0,0.3]
[1674067498909,0.25185379,20916.0,20913.0,0.486667]
[1674067499217,0.25185379,20916.0,20911.0,0.478197]
[1674067499477,0.3648784,20917.0,20913.0,0.478163]
[1674067499732,0.3648784,20919.0,20914.0,0.49203998]
[1674067499992,0.3648784,20919.0,20915.0,0.19432097]
[1674067500257,0.25411875,20918.0,20915.0,0.19432097]
[1674067500550,0.23055757,20916.0,20911.0,0.21451395]
[1674067500810,1.07353997,20916.0,20911.0,0.21451395]
[1674067501088,1.07354697,20916.0,20911.0,0.21451395]
[1674067501339,0.3648784,20917.0,20913.0,0.2059978]
[1674067501639,0.478084,20917.0,20913.0,0.40031877]
[1674067502219,0.8429364,20918.0,20913.0,0.40031877]
[1674067502471,0.20523147,20917.0,20913.0,0.40031877]
[1674067502728,0.20523147,20917.0,20913.0,0.6841628]
[1674067502989,0.20523147,20917.0,20913.0,1.1623208]
[1674067503261,0.20523147,20917.0,20913.0,0.6841678]
[1674067503510,0.15,20916.0,20913.0,0.2059978]
[1674067503773,0.57010987,20917.0,20913.0,0.2059978]
[1674067504024,0.20523147,20917.0,20913.0,0.2059978]
[1674067504298,0.87945801,20917.0,20910.0,0.478231]
[1674067504585,0.6899384,20916.0,20910.0,0.19432097]
[1674067504848,1.1675734,20915.0,20910.0,0.22942238]
[1674067505110,0.3648784,20915.0,20910.0,0.67255597]
[1674067505369,0.68332347,20917.0,20910.0,0.67255597]
[1674067505370,0.3648784,20916.0,20911.0,0.23465025]
[1674067505653,0.478108,20916.0,20911.0,0.42897122]
[1674067506208,0.24929013,20914.0,20911.0,0.42897122]
[1674067506461,1.3211094,20916.0,20911.0,0.23465025]
[1674067506718,0.478107,20916.0,20912.0,0.49432097]
[1674067506994,0.57164242,20917.0,20912.0,0.97251297]
[1674067507299,0.20676402,20917.0,20913.0,0.19432097]
[1674067507598,1.16294302,20917.0,20913.0,0.19432097]
[1674067507852,0.3648784,20918.0,20914.0,0.00019997]
[1674067508114,0.3648784,20919.0,20915.0,0.19432097]
[1674067508388,0.39875299,20921.0,20915.0,0.19432097]
[1674067508389,0.3648784,20921.0,20916.0,0.93072997]
[1674067508710,0.3648784,20922.0,20917.0,0.76110997]
[1674067508965,0.77661244,20923.0,20918.0,0.91055266]
[1674067509228,0.41173404,20923.0,20919.0,1.22978066]
[1674067509475,0.41173404,20923.0,20919.0,1.26372369]
[1674067509723,0.41173404,20923.0,20919.0,1.45804466]
[1674067510236,0.41173404,20923.0,20919.0,1.26372369]
[1674067510750,0.41173404,20923.0,20920.0,0.22365294]
[1674067511021,0.63144548,20923.0,20919.0,0.478022]
[1674067511282,0.63144548,20923.0,20918.0,0.47804]
[1674067511530,0.99632388,20923.0,20918.0,0.67236097]
[1674067511794,0.99632388,20923.0,20918.0,0.47804]
[1674067512045,0.99632388,20923.0,20915.0,0.478112]
[1674067512046,0.43917642,20922.0,20915.0,0.478112]
[1674067512346,0.0001049,20918.0,20915.0,0.67243297]
[1674067512598,0.328265,20917.0,20915.0,0.478112]
[1674067512805,0.0001049,20918.0,20915.0,0.478112]
[1674067513055,0.23285921,20917.0,20913.0,0.47816]
[1674067513303,0.23285921,20917.0,20912.0,0.478178]
[1674067513561,0.59773761,20917.0,20913.0,0.478165]
[1674067513817,0.23285921,20917.0,20913.0,0.40851077]
[1674067514574,0.71094221,20917.0,20913.0,0.40851077]
[1674067514826,0.478083,20917.0,20913.0,0.2141898]
[1674067515333,0.59201242,20917.0,20911.0,0.956412]
[1674067515593,0.58203488,20916.0,20911.0,0.956412]
[1674067515841,0.62616928,20916.0,20911.0,0.956412]
[1674067516358,0.62616928,20916.0,20911.0,1.15073297]
[1674067516593,0.26129088,20916.0,20911.0,1.35482264]
[1674067516837,0.3648784,20917.0,20911.0,1.35482264]
[1674067517085,0.3649833,20918.0,20917.0,0.00011055]
[1674067517335,0.0001049,20918.0,20917.0,0.19443152]
[1674067517849,0.0001049,20918.0,20917.0,0.00011055]
[1674067518112,0.0001049,20918.0,20917.0,1.04329933]
[1674067518363,0.0001049,20918.0,20917.0,1.34329933]
[1674067518882,0.0001049,20918.0,20917.0,2.06804102]
[1674067519405,0.0001049,20918.0,20917.0,1.82900102]
[1674067519653,0.0001049,20918.0,20917.0,1.75600102]
[1674067519923,0.0001049,20918.0,20917.0,1.27029933]
[1674067520187,0.0001049,20918.0,20917.0,0.97029933]
[1674067520423,0.0001049,20918.0,20917.0,0.23393133]
[1674067520928,0.0001049,20918.0,20917.0,1.01201133]
[1674067521190,0.0001049,20918.0,20917.0,1.75600102]
[1674067521426,0.0001049,20918.0,20917.0,1.27879933]
[1674067521671,0.0001049,20918.0,20917.0,1.27029933]
[1674067521923,0.0001049,20918.0,20917.0,0.97029933]
[1674067522167,0.0001049,20918.0,20917.0,1.27029933]
[1674067522693,0.0001049,20918.0,20917.0,1.75600102]
[1674067523925,0.0733349,20918.0,20917.0,0.49221933]
[1674067524179,0.0001049,20918.0,20917.0,0.53393133]
[1674067524429,0.0001049,20918.0,20917.0,1.27029933]
[1674067524931,0.0001049,20918.0,20917.0,0.79221933]
[1674067525191,0.0001049,20918.0,20917.0,0.49221933]
[1674067525440,0.0733349,20918.0,20917.0,0.71201133]
[1674067525693,0.0733349,20918.0,20917.0,0.23393133]
[1674067526434,0.0001049,20918.0,20917.0,0.23393133]
[1674067526682,0.0001049,20918.0,20917.0,1.27029933]
[1674067526931,0.0001049,20918.0,20917.0,0.79221933]
[1674067527468,0.0001049,20918.0,20917.0,1.27879933]
[1674067528463,0.0001049,20918.0,20917.0,1.75600102]
[1674067528698,3.733e-05,20918.0,20917.0,2.15421591]
[1674067529955,3.733e-05,20918.0,20917.0,1.91121024]
[1674067530453,3.733e-05,20918.0,20917.0,1.37218024]
[1674067531705,3.733e-05,20918.0,20917.0,1.67218024]
[1674067532694,3.733e-05,20918.0,20917.0,2.50510121]
[1674067532958,3.733e-05,20918.0,20917.0,2.57962694]
[1674067533215,3.733e-05,20918.0,20917.0,2.98302823]
[1674067533465,3.733e-05,20918.0,20917.0,2.31069715]
[1674067534220,3.733e-05,20918.0,20917.0,1.37209715]
[1674067536229,3.733e-05,20918.0,20917.0,2.00239715]
[1674067536469,3.733e-05,20918.0,20917.0,2.30239715]
[1674067536974,3.733e-05,20918.0,20917.0,2.46423298]
[1674067537220,3.733e-05,20918.0,20917.0,2.86764951]
[1674067537478,3.733e-05,20918.0,20917.0,2.74757637]
[1674067537728,3.733e-05,20918.0,20917.0,2.75319479]
[1674067537991,3.733e-05,20918.0,20917.0,2.5777502]
[1674067539507,3.733e-05,20918.0,20917.0,2.43039715]
[1674067539802,3.733e-05,20918.0,20917.0,2.5777502]
[1674067540050,3.733e-05,20918.0,20917.0,2.46423298]
[1674067541351,3.733e-05,20918.0,20917.0,2.15573298]
[1674067541600,3.733e-05,20918.0,20917.0,1.34159715]
[1674067542358,3.733e-05,20918.0,20917.0,1.21359715]
[1674067542900,3.733e-05,20918.0,20917.0,0.95530915]
[1674067543355,3.733e-05,20918.0,20917.0,1.21359715]
[1674067544183,0.07326733,20918.0,20917.0,0.73639546]
[1674067544380,0.07326733,20918.0,20917.0,2.746e-05]
[1674067544650,3.733e-05,20918.0,20917.0,0.47810746]
[1674067544911,0.75104073,20920.0,20918.0,0.23335374]
[1674067544912,0.3648784,20920.0,20918.0,0.23335374]
[1674067545173,0.3648784,20922.0,20919.0,1.214327]
[1674067545418,0.41173404,20923.0,20919.0,1.14955666]
[1674067545671,0.41173404,20923.0,20920.0,0.258243]
[1674067545672,0.2660121,20922.0,20920.0,0.258243]
[1674067545915,0.2660121,20922.0,20917.0,0.47809146]
[1674067546171,0.25248673,20920.0,20917.0,0.95529315]
[1674067546417,0.37948673,20920.0,20917.0,2.746e-05]
[1674067546926,0.74436513,20920.0,20917.0,2.746e-05]
[1674067547442,0.85751273,20920.0,20917.0,2.746e-05]
[1674067547701,0.330768,20919.0,20915.0,0.194977]
[1674067548006,0.332935,20918.0,20915.0,0.194977]
[1674067548199,0.3648784,20919.0,20915.0,0.478123]
[1674067548461,0.3648784,20919.0,20912.0,0.478179]
[1674067548710,0.128,20916.0,20912.0,1.15067197]
[1674067548957,0.468732,20918.0,20913.0,0.25955951]
[1674067548958,0.3648784,20917.0,20913.0,0.25955951]
[1674067549210,0.9703404,20918.0,20913.0,0.25955951]
[1674067549507,0.9703404,20918.0,20913.0,0.45388048]
[1674067549749,0.4922784,20918.0,20914.0,0.3]
[1674067550261,0.9703424,20918.0,20912.0,0.478179]
[1674067550501,0.1278,20916.0,20913.0,0.478167]
[1674067550735,0.4926784,20916.0,20913.0,0.478167]
[1674067550981,0.1278,20916.0,20913.0,0.478167]
[1674067551227,0.1278,20916.0,20911.0,0.478202]
[1674067551477,0.605907,20916.0,20912.0,0.21516243]
[1674067551729,0.9707854,20916.0,20912.0,0.21516243]
[1674067552234,0.4926784,20916.0,20912.0,0.21516243]
[1674067552474,0.71425823,20916.0,20912.0,0.4094834]
[1674067552727,0.71425823,20916.0,20913.0,0.3]
[1674067552986,0.34937983,20916.0,20913.0,0.3]
[1674067553226,0.34937983,20916.0,20912.0,0.21516243]
[1674067553485,0.71425823,20916.0,20912.0,0.21516243]
[1674067553743,0.71425823,20916.0,20909.0,0.72923414]
[1674067553744,0.1269,20913.0,20909.0,0.72923414]
[1674067554003,0.314399,20912.0,20909.0,1.20643583]
[1674067554275,0.38332691,20913.0,20909.0,1.20643583]
[1674067554276,0.25642691,20913.0,20909.0,1.20643583]
[1674067554504,0.8980784,20914.0,20909.0,1.20643583]
[1674067554748,0.8980784,20914.0,20909.0,1.4007568]
[1674067554993,1.12160243,20914.0,20910.0,0.3]
[1674067555506,0.22508952,20912.0,20908.0,0.01300885]
[1674067555763,0.128,20910.0,20908.0,0.01300885]
[1674067556016,0.316637,20909.0,20908.0,0.01300885]
[1674067556260,0.794899,20909.0,20908.0,0.01300885]
[1674067558806,0.922799,20909.0,20908.0,0.01300885]
[1674067559061,1.67124984,20909.0,20908.0,0.01300885]
[1674067559561,1.77124984,20909.0,20908.0,0.01300885]
[1674067560085,2.02568951,20909.0,20908.0,0.01300885]
[1674067560339,1.722987,20909.0,20908.0,0.01300885]
[1674067561905,1.622987,20909.0,20908.0,0.20732982]
[1674067562179,1.622987,20909.0,20908.0,0.01300885]
[1674067562429,0.316637,20909.0,20908.0,0.44392073]
[1674067562694,0.478183,20913.0,20908.0,0.44392073]
[1674067562952,0.4053,20914.0,20909.0,0.46123297]
[1674067563238,1.74218314,20914.0,20909.0,0.3]
[1674067563456,1.74218314,20914.0,20910.0,0.19432097]
[1674067563710,0.478087,20917.0,20911.0,0.19432097]
[1674067563957,0.6689659,20917.0,20912.0,0.45268797]
[1674067564217,1.01587,20918.0,20913.0,0.49432097]
[1674067564462,1.01587,20918.0,20914.0,0.19432097]
[1674067564463,0.87432155,20917.0,20914.0,0.19432097]
[1674067564718,0.466124,20916.0,20911.0,0.3648784]
[1674067564966,0.466124,20916.0,20910.0,0.72626411]
[1674067564967,0.596379,20915.0,20910.0,0.72626411]
[1674067565212,0.128,20916.0,20912.0,0.27391619]
[1674067565458,0.128,20916.0,20913.0,0.3]
[1674067565709,0.128,20916.0,20913.0,0.49432097]
[1674067565953,0.128,20916.0,20913.0,0.3]
[1674067566504,0.128,20916.0,20912.0,0.27391619]
[1674067567084,1.01681499,20921.0,20913.0,1.02478169]
[1674067567085,0.477992,20921.0,20913.0,1.02478169]
[1674067567283,0.5694,20920.0,20915.0,0.478125]
[1674067567542,0.5694,20920.0,20916.0,0.49432097]
[1674067567784,0.5694,20920.0,20917.0,0.19432097]
[1674067568045,0.23762119,20919.0,20917.0,0.19432097]
[1674067568285,0.7529,20922.0,20917.0,0.19432097]
[1674067568286,0.128,20921.0,20918.0,0.478057]
[1674067568536,0.25281119,20922.0,20919.0,0.75258497]
[1674067568788,0.80167793,20923.0,20919.0,0.49432097]
[1674067569060,0.23548615,20921.0,20917.0,0.23904]
[1674067569321,0.469444,20920.0,20915.0,0.15]
[1674067569574,1.3056924,20919.0,20912.0,0.21529127]
[1674067569811,1.434246,20917.0,20912.0,0.21529127]
[1674067570084,0.6904354,20916.0,20914.0,0.26029021]
[1674067570329,0.456912,20915.0,20914.0,0.26029021]
[1674067570842,0.450191,20915.0,20914.0,0.26029021]
[1674067571324,0.450191,20915.0,20909.0,0.19432097]
[1674067571579,0.1278,20910.0,20909.0,0.24435442]
[1674067571824,0.441483,20910.0,20908.0,0.01300885]
[1674067572074,0.1274,20911.0,20908.0,0.20609301]
[1674067572569,0.4928784,20912.0,20908.0,0.20609301]
[1674067572854,0.128,20912.0,20909.0,0.778262]
[1674067573124,0.86097934,20912.0,20908.0,0.20609301]
[1674067573389,1.22585774,20912.0,20908.0,0.20609301]
[1674067573593,1.22585774,20912.0,20908.0,0.40041398]
[1674067573594,1.09785774,20912.0,20908.0,0.40041398]
[1674067573855,0.61966374,20912.0,20908.0,0.87869698]
[1674067574114,0.3648784,20913.0,20910.0,0.23912]
[1674067574361,0.12748632,20914.0,20911.0,0.95532237]
[1674067574672,0.12748632,20914.0,20912.0,0.3]
[1674067574673,8.632e-05,20914.0,20912.0,0.3]
[1674067574876,8.632e-05,20914.0,20913.0,1.462274]
[1674067575134,8.632e-05,20914.0,20913.0,2.46760718]
[1674067575384,8.632e-05,20914.0,20913.0,2.27328621]
[1674067575631,8.632e-05,20914.0,20913.0,2.43379666]
[1674067575891,8.632e-05,20914.0,20913.0,3.03158621]
[1674067576396,1.445e-05,20914.0,20913.0,3.03158621]
[1674067577453,1.445e-05,20914.0,20913.0,2.53650621]
[1674067578975,1.445e-05,20914.0,20913.0,1.73420621]
[1674067579233,1.445e-05,20914.0,20913.0,1.24850452]
[1674067579484,1.445e-05,20914.0,20913.0,0.77033352]
[1674067579740,1.445e-05,20914.0,20913.0,0.258352]
[1674067580509,1.445e-05,20914.0,20912.0,0.956365]
[1674067580776,1.445e-05,20914.0,20913.0,0.566849]
[1674067581045,1.445e-05,20914.0,20913.0,1.76130169]
[1674067581297,1.445e-05,20914.0,20913.0,1.91130169]
[1674067582663,1.445e-05,20914.0,20913.0,2.54160169]
[1674067582928,1.445e-05,20914.0,20913.0,2.57541221]
[1674067583462,1.445e-05,20914.0,20913.0,1.25603221]
[1674067583751,1.445e-05,20914.0,20913.0,1.22222169]
[1674067584003,1.445e-05,20914.0,20913.0,0.73652]
[1674067584528,1.445e-05,20914.0,20913.0,1.21372169]
[1674067585258,0.07324445,20914.0,20913.0,0.73652]
[1674067585544,0.07324445,20914.0,20909.0,0.478253]
[1674067585545,0.20124445,20914.0,20909.0,0.478253]
[1674067585832,0.313687,20913.0,20908.0,0.49128585]
[1674067586098,0.47816545,20914.0,20908.0,0.49128585]
[1674067586359,0.1274,20912.0,20908.0,0.68560382]
[1674067586625,0.1274,20912.0,20908.0,0.49128285]
[1674067587918,0.1274,20912.0,20909.0,0.25428142]
[1674067588176,7.445e-05,20914.0,20911.0,0.15]
[1674067588177,0.36495285,20914.0,20911.0,0.15]
[1674067588435,0.24224932,20913.0,20912.0,0.258369]
[1674067588713,0.24224932,20913.0,20909.0,0.25428142]
[1674067589003,0.24224932,20913.0,20908.0,0.49119168]
[1674067589004,0.307016,20912.0,20908.0,0.49119168]
[1674067589215,0.3648784,20912.0,20908.0,0.49119168]
[1674067589474,0.60712772,20913.0,20908.0,0.49119168]
[1674067589734,0.73512772,20913.0,20908.0,0.68551265]
[1674067590559,0.84842632,20913.0,20908.0,0.20723165]
[1674067591068,0.92057926,20913.0,20908.0,0.01291068]
[1674067591322,0.92057926,20913.0,20908.0,0.20723165]
[1674067591323,0.6898694,20912.0,20908.0,0.20723165]
[1674067591848,0.320161,20911.0,20908.0,0.01291068]
[1674067591849,0.8431344,20912.0,20908.0,0.01291068]
[1674067592382,0.441455,20911.0,20908.0,0.01291068]
[1674067592671,0.308487,20910.0,20908.0,0.01291068]
[1674067592966,0.341796,20909.0,20908.0,0.01291068]
[1674067593501,0.947858,20909.0,20908.0,0.01291068]
[1674067593753,1.3127364,20909.0,20908.0,0.01291068]
[1674067594337,1.4627364,20909.0,20908.0,0.01291068]
[1674067594603,0.947858,20909.0,20908.0,0.01291068]
[1674067594857,0.947918,20909.0,20908.0,0.01291068]
[1674067595121,1.4627964,20909.0,20908.0,0.01291068]
[1674067595649,1.3127964,20909.0,20908.0,0.01291068]
[1674067595921,0.947918,20909.0,20908.0,0.01291068]
[1674067596454,0.341856,20909.0,20908.0,0.01291068]
[1674067596720,6e-05,20909.0,20908.0,0.01291068]
[1674067597070,0.14629,20909.0,20908.0,0.01291068]
[1674067597332,0.482374,20909.0,20908.0,0.01291068]
[1674067597586,0.960636,20909.0,20908.0,0.01291068]
[1674067597845,1.088236,20909.0,20908.0,0.01291068]
[1674067598405,6e-05,20909.0,20908.0,0.56419568]
[1674067598660,6e-05,20909.0,20908.0,1.59982237]
[1674067599197,6e-05,20909.0,20908.0,2.07810737]
[1674067599470,6e-05,20909.0,20908.0,2.08660737]
[1674067600027,0.355633,20913.0,20909.0,0.5023]
[1674067600280,1.445e-05,20914.0,20911.0,0.2391]
[1674067600544,1.445e-05,20914.0,20912.0,2.18627866]
[1674067600808,1.445e-05,20914.0,20913.0,0.1585]
[1674067601085,1.445e-05,20914.0,20913.0,0.895021]
[1674067601343,1.445e-05,20914.0,20913.0,0.486671]
[1674067601845,1.445e-05,20914.0,20913.0,1.04502]
[1674067602100,1.445e-05,20914.0,20913.0,1.19502]
[1674067602624,1.445e-05,20914.0,20913.0,2.16736698]
[1674067603135,1.445e-05,20914.0,20913.0,1.92828698]
[1674067603417,1.445e-05,20914.0,20913.0,1.67222169]
[1674067604476,1.445e-05,20914.0,20913.0,1.57222169]
[1674067604741,1.445e-05,20914.0,20913.0,1.70022169]
[1674067605747,1.445e-05,20914.0,20913.0,1.57222169]
[1674067606539,1.445e-05,20914.0,20913.0,1.58072169]
[1674067608391,0.2340084,20918.0,20913.0,1.58072169]
[1674067608647,0.2340084,20918.0,20914.0,1.22665239]
[1674067608933,0.00796606,20921.0,20915.0,2.60325466]
[1674067609193,0.22231914,20921.0,20916.0,0.68002266]
[1674067609460,0.22231914,20921.0,20917.0,1.14959666]
[1674067609998,0.22231914,20921.0,20917.0,0.67239497]
[1674067610851,0.004,20918.0,20917.0,0.478074]
[1674067611099,0.004,20918.0,20916.0,0.84206228]
[1674067611100,0.20275048,20919.0,20916.0,0.478091]
[1674067611365,0.15796606,20921.0,20917.0,0.004]
[1674067611677,0.05396606,20921.0,20917.0,0.19832097]
[1674067611928,0.20754214,20921.0,20917.0,0.19432097]
[1674067612181,0.046,20919.0,20916.0,0.004]
[1674067612436,0.339073,20918.0,20916.0,0.004]
[1674067612694,0.046,20919.0,20916.0,0.004]
[1674067612995,0.046,20919.0,20914.0,0.23171816]
[1674067612996,0.485574,20918.0,20914.0,0.23171816]
[1674067613281,0.321928,20917.0,20914.0,0.23171816]
[1674067613553,0.315714,20916.0,20914.0,0.23171816]
[1674067613817,0.326168,20915.0,20911.0,0.47821]
[1674067614109,0.315717,20914.0,20913.0,0.07526047]
[1674067614362,0.24660863,20917.0,20914.0,0.046]
[1674067614363,0.37350863,20917.0,20914.0,0.046]
[1674067614623,0.1269,20917.0,20915.0,0.67244597]
[1674067614878,0.004,20918.0,20916.0,0.258312]
[1674067615188,0.004,20918.0,20917.0,0.47808]
[1674067615463,0.004,20918.0,20917.0,1.036369]
[1674067615735,0.004,20918.0,20917.0,2.18597166]
[1674067616003,0.00796606,20921.0,20917.0,2.00015069]
[1674067616253,0.00796606,20921.0,20918.0,0.0085]
[1674067616517,0.00796606,20921.0,20919.0,0.736293]
[1674067616798,0.00796606,20921.0,20919.0,0.478034]
[1674067617056,0.05396606,20921.0,20918.0,0.22515726]
[1674067617312,0.00796606,20921.0,20918.0,0.21665726]
[1674067617573,0.327562,20920.0,20919.0,0.004]
[1674067617830,0.00796606,20921.0,20918.0,0.21665726]
[1674067618308,0.05396606,20921.0,20919.0,0.3]
[1674067618617,0.05396606,20921.0,20919.0,0.478029]
[1674067618884,0.00796606,20921.0,20918.0,0.21665726]
[1674067619145,0.311706,20920.0,20918.0,0.21665726]
[1674067619426,0.046,20920.0,20919.0,0.004]
[1674067619680,0.046,20920.0,20918.0,1.17275126]
[1674067619937,0.00796606,20921.0,20918.0,0.69471326]
[1674067619938,0.05396606,20921.0,20918.0,0.69471326]
[1674067620188,0.05396606,20921.0,20919.0,0.3]
[1674067620452,0.05396606,20921.0,20920.0,0.258245]
[1674067620940,0.05396606,20921.0,20920.0,1.036256]
[1674067621218,0.1272,20925.0,20921.0,0.15]
[1674067621469,0.1272,20925.0,20922.0,0.19432097]
[1674067622248,0.13552684,20926.0,20923.0,0.45119828]
[1674067622508,0.00832684,20926.0,20924.0,0.3]
[1674067622771,0.00832684,20926.0,20925.0,0.408169]
[1674067623025,0.00832684,20926.0,20925.0,0.15]
[1674067623581,0.00832684,20926.0,20925.0,0.45]
[1674067623839,0.00832684,20926.0,20925.0,0.15]
[1674067624086,0.00832684,20926.0,20925.0,0.627897]
[1674067624341,0.00832684,20926.0,20925.0,0.158]
[1674067625444,0.00832684,20926.0,20925.0,0.458]
[1674067625721,0.00832684,20926.0,20925.0,1.83398122]
[1674067626195,0.00832684,20926.0,20925.0,1.80746569]
[1674067626443,6.84e-06,20926.0,20925.0,1.79946569]
[1674067626698,6.84e-06,20926.0,20925.0,2.03378666]
[1674067626976,6.84e-06,20926.0,20925.0,4.02618458]
[1674067627261,0.00762933,20928.0,20925.0,4.50477413]
[1674067627525,9.33e-06,20928.0,20927.0,1.21838169]
[1674067627781,1.395e-05,20929.0,20927.0,2.47739069]
[1674067628037,1.395e-05,20929.0,20928.0,0.558122]
[1674067628301,1.395e-05,20929.0,20928.0,0.73595]
[1674067628604,1.395e-05,20929.0,20928.0,0.627828]
[1674067628858,3.247e-05,20930.0,20928.0,1.95487166]
[1674067629109,0.00762933,20932.0,20930.0,0.5023]
[1674067629376,0.00762933,20932.0,20930.0,2.46864469]
[1674067629633,0.00762933,20932.0,20930.0,2.47714469]
[1674067630139,0.00762933,20932.0,20930.0,3.01325521]
[1674067630400,0.00762933,20932.0,20930.0,3.14125521]
[1674067630673,0.00762933,20932.0,20931.0,1.55042169]
[1674067630924,2.933e-05,20932.0,20931.0,2.48994467]
[1674067631184,0.00844125,20934.0,20931.0,2.47006921]
[1674067631439,0.00844125,20934.0,20933.0,1.34632169]
[1674067631692,0.00844125,20934.0,20933.0,5.03042758]
[1674067631943,0.00844125,20934.0,20933.0,4.50781921]
[1674067632208,2.1e-06,20935.0,20934.0,1.1423]
[1674067632491,0.21776737,20942.0,20934.0,2.26343697]
[1674067632748,0.4703,20945.0,20938.0,0.2388]
[1674067632749,0.68817073,20945.0,20938.0,0.2388]
[1674067633015,0.7874266,20947.0,20942.0,0.23875]
[1674067633289,0.56955587,20947.0,20943.0,0.68029597]
[1674067633559,0.56955587,20947.0,20944.0,0.19432097]
[1674067633852,0.56955587,20947.0,20945.0,0.19432097]
[1674067634129,0.36720921,20944.0,20941.0,0.477517]
[1674067634397,0.338557,20943.0,20941.0,0.477517]
[1674067634654,0.36720921,20944.0,20941.0,0.477517]
[1674067634914,0.36720921,20944.0,20941.0,0.46823659]
[1674067635174,0.36720921,20944.0,20941.0,0.46923659]
[1674067635422,0.36720921,20944.0,20942.0,0.23177564]
[1674067635716,0.36720921,20944.0,20941.0,0.038]
[1674067635998,0.36720921,20944.0,20942.0,0.24073617]
[1674067636266,9.21e-06,20944.0,20943.0,1.69006969]
[1674067636799,9.21e-06,20944.0,20943.0,1.69006769]
[1674067636802,9.21e-06,20944.0,20943.0,1.81686769]
[1674067637063,9.21e-06,20944.0,20943.0,2.80671299]
[1674067637318,0.0001,20950.0,20943.0,3.30703396]
[1674067637579,0.21567227,20954.0,20949.0,0.36666]
[1674067637881,0.21580782,20958.0,20952.0,0.36663]
[1674067638141,0.5893192,20959.0,20953.0,2.46358796]
[1674067638410,0.5843192,20959.0,20954.0,0.92924766]
[1674067638677,0.4751572,20962.0,20955.0,2.64173166]
[1674067638935,0.13100962,20962.0,20956.0,1.28956396]
[1674067639193,0.60808262,20962.0,20957.0,0.19432097]
[1674067639468,0.60808262,20962.0,20956.0,0.3603453]
[1674067639469,0.1279,20961.0,20956.0,0.3603453]
[1674067639733,0.26714703,20956.0,20955.0,0.15]
[1674067640005,0.71902703,20956.0,20953.0,0.008]
[1674067640282,2.368129,20955.0,20948.0,0.20555319]
[1674067640588,0.1271,20949.0,20947.0,0.20002031]
[1674067640842,0.3603453,20951.0,20949.0,0.25961128]
[1674067641101,0.02907039,20951.0,20949.0,0.25961128]
[1674067641357,0.128,20952.0,20949.0,0.25961128]
[1674067641628,0.128,20952.0,20945.0,0.627436]
[1674067641922,0.128,20952.0,20944.0,0.86168375]
[1674067641923,0.1278,20949.0,20944.0,0.86168375]
[1674067642179,0.02907039,20948.0,20944.0,0.70668375]
[1674067642437,0.02907039,20947.0,20944.0,0.70668375]
[1674067642712,0.02907039,20946.0,20943.0,0.15]
[1674067642989,0.31417608,20956.0,20948.0,0.47720169]
[1674067643511,0.26714703,20956.0,20955.0,1.0]
[1674067643513,0.21456854,20956.0,20955.0,1.7657386]
[1674067643762,0.01089381,20960.0,20955.0,3.1381516]
[1674067644020,0.01089381,20960.0,20959.0,1.21800169]
[1674067644290,0.01089381,20960.0,20959.0,4.00963978]
[1674067644628,0.15,20968.0,20959.0,4.37624656]
[1674067644828,0.21254831,20965.0,20961.0,0.97950169]
[1674067645089,0.21254831,20965.0,20964.0,0.2385]
[1674067645344,0.21254831,20965.0,20964.0,1.79771769]
[1674067645345,0.23611674,20965.0,20964.0,1.79771769]
[1674067645609,0.35260112,20969.0,20964.0,0.257575]
[1674067645866,0.22991592,20968.0,20965.0,0.19432097]
[1674067646128,0.22991592,20968.0,20966.0,0.19432097]
[1674067646387,0.22991592,20968.0,20967.0,1.64446366]
[1674067646388,0.15,20968.0,20967.0,1.64446366]
[1674067646648,0.22242944,20971.0,20967.0,2.77233895]
[1674067646649,0.00976083,20971.0,20967.0,2.77233895]
[1674067646912,0.00976083,20971.0,20970.0,0.23837]
[1674067647407,0.00976083,20971.0,20970.0,2.91858078]
[1674067647410,0.00976083,20971.0,20970.0,4.45487281]
[1674067647664,0.00976083,20971.0,20970.0,3.48715076]
[1674067647928,8.3e-07,20971.0,20970.0,3.4873502]
[1674067648192,8.3e-07,20971.0,20970.0,1.43852037]
[1674067648446,8.3e-07,20971.0,20970.0,2.97402206]
[1674067648716,0.00100083,20971.0,20970.0,3.104116]
[1674067648981,8.3e-07,20971.0,20970.0,3.37071712]
[1674067649243,0.00100083,20971.0,20970.0,3.104116]
[1674067649509,8.3e-07,20971.0,20970.0,2.89806529]
[1674067649792,0.001,20971.0,20970.0,12.74654415]
[1674067650049,0.001,20978.0,20970.0,12.87418088]
[1674067650309,0.001,20978.0,20977.0,0.23831]
[1674067650562,0.001,20978.0,20977.0,2.72535466]
[1674067650816,0.28330202,20978.0,20977.0,1.59916]
[1674067651448,0.27081052,20978.0,20977.0,1.59916]
[1674067651450,0.27081052,20978.0,20973.0,0.476784]
[1674067651713,0.27081052,20978.0,20974.0,0.47720169]
[1674067651973,0.27081052,20978.0,20974.0,0.53012113]
[1674067652228,0.27081052,20978.0,20977.0,0.016]
[1674067652675,0.001,20978.0,20977.0,1.2773281]
[1674067652679,0.001,20978.0,20977.0,1.08300713]
[1674067652901,0.001,20978.0,20977.0,1.01000713]
[1674067653125,0.001,20978.0,20977.0,0.75262613]
[1674067653348,0.001,20978.0,20977.0,1.80320582]
[1674067654256,0.07423,20978.0,20977.0,0.77165413]
[1674067654482,0.07423,20978.0,20977.0,1.07947782]
[1674067654483,0.001,20978.0,20977.0,1.07947782]
[1674067654710,0.001,20978.0,20977.0,1.22982782]
[1674067654937,0.001,20978.0,20977.0,1.48720582]
[1674067655488,0.001,20978.0,20977.0,1.63720582]
[1674067655755,0.001,20978.0,20977.0,2.02420582]
[1674067656015,0.07423,20978.0,20977.0,0.77165413]
[1674067656265,0.07423,20978.0,20977.0,0.82109]
[1674067656525,0.001,20978.0,20977.0,0.476712]
[1674067656789,0.37175147,20978.0,20976.0,0.47672]
[1674067657050,0.31745,20977.0,20973.0,6e-05]
[1674067657304,0.329832,20976.0,20973.0,6e-05]
[1674067657592,0.469799,20975.0,20973.0,6e-05]
[1674067657852,0.305077,20974.0,20973.0,6e-05]
[1674067658620,0.305077,20974.0,20971.0,0.51422955]
[1674067658962,0.772302,20977.0,20973.0,0.019]
[1674067659146,0.772302,20977.0,20970.0,0.47687]
[1674067659147,0.27300322,20973.0,20970.0,0.47687]
[1674067659405,0.328523,20972.0,20970.0,0.47687]
[1674067659671,0.27300322,20973.0,20970.0,0.47687]
[1674067659950,0.77712054,20973.0,20966.0,0.51878774]
[1674067660229,0.1355,20969.0,20964.0,0.36100027]
[1674067660489,0.1363,20965.0,20959.0,0.03801542]
[1674067660779,0.66754074,20964.0,20959.0,0.03801542]